bitfinex/quotes_BTCUSD_20260127
["timestamp","ask_amount","ask_price","bid_price","bid_amount"]
[1769524622754,0.70671265,88081.0,88052.0,0.0234813]
[1769524623240,0.70671265,88081.0,88050.0,0.06814259]
[1769524623241,0.00013967,88081.0,88068.0,0.01135486]
[1769524623461,0.0899373,88107.0,88082.0,0.0234813]
[1769524623645,0.11300398,88103.0,88082.0,0.0234813]
[1769524623843,0.11300398,88102.0,88082.0,0.0234813]
[1769524624044,0.11300398,88101.0,88082.0,0.0234813]
[1769524624251,0.11300398,88101.0,88078.0,0.67988858]
[1769524624252,0.01,88082.0,88063.0,0.0113555]
[1769524624497,0.01,88082.0,88067.0,0.01135499]
[1769524624699,0.01,88082.0,88070.0,0.0234813]
[1769524624870,0.68362028,88099.0,88070.0,0.080254]
[1769524625227,0.11304163,88098.0,88073.0,0.0234813]
[1769524625439,0.0004574,88104.0,88073.0,0.0234813]
[1769524625440,0.11304163,88097.0,88073.0,0.0234813]
[1769524625644,0.79666191,88096.0,88066.0,0.01135512]
[1769524625846,0.0229527,88100.0,88065.0,0.0234813]
[1769524625847,0.68362028,88094.0,88065.0,0.0234813]
[1769524626018,0.03430343,88100.0,88065.0,0.0234813]
[1769524626019,0.06811159,88091.0,88065.0,0.0234813]
[1769524626236,0.06811159,88091.0,88053.0,0.05678361]
[1769524626237,0.01,88065.0,88043.0,0.0234813]
[1769524626364,0.01,88065.0,88035.0,0.01135911]
[1769524626569,0.70657298,88064.0,88035.0,5.297e-05]
[1769524626776,0.68362028,88062.0,88035.0,5.297e-05]
[1769524627219,0.06781719,88062.0,88035.0,5.297e-05]
[1769524627467,0.0229527,88058.0,88035.0,5.297e-05]
[1769524627687,0.70657298,88057.0,88035.0,5.297e-05]
[1769524628125,0.68362028,88076.0,88040.0,0.33920377]
[1769524628347,0.11319002,88075.0,88045.0,0.0234813]
[1769524628566,0.68362028,88073.0,88045.0,0.03483912]
[1769524628994,0.11318977,88072.0,88045.0,0.0234813]
[1769524629208,0.11664,88077.0,88050.0,0.01135718]
[1769524629429,0.11318408,88076.0,88050.0,0.01135718]
[1769524629674,0.11664,88077.0,88049.0,0.0234813]
[1769524629675,0.11664,88077.0,88052.0,0.0234813]
[1769524630230,0.11318081,88076.0,88052.0,0.0234813]
[1769524630436,0.11318081,88076.0,88039.0,0.0113586]
[1769524630437,0.01131808,88075.0,88043.0,0.09162941]
[1769524630645,0.49673043,88076.0,88044.0,0.01135795]
[1769524631090,0.49673043,88076.0,88045.0,0.01135782]
[1769524631296,0.01135395,88075.0,88043.0,0.0234813]
[1769524631504,0.0229527,88061.0,88030.0,0.0234813]
[1769524631818,0.68362028,88058.0,88030.0,0.0234813]
[1769524632024,0.70657298,88058.0,88030.0,0.69201631]
[1769524632236,0.0229527,88048.0,88014.0,0.01136182]
[1769524632406,0.68362028,88045.0,88017.0,0.00066734]
[1769524632587,0.68362028,88043.0,88017.0,0.00066734]
[1769524632789,0.01135769,88046.0,88017.0,0.00066734]
[1769524633010,0.0229527,88035.0,88017.0,0.00066734]
[1769524633217,0.68362028,88034.0,88017.0,0.00066734]
[1769524634414,0.11668,88046.0,88017.0,0.00066734]
[1769524634602,0.68362028,88043.0,88017.0,0.00066734]
[1769524635021,0.01135808,88043.0,88017.0,0.00066734]
[1769524635205,0.68362028,88039.0,88017.0,0.00066734]
[1769524635422,0.70657298,88039.0,88017.0,0.00066734]
[1769524636830,0.68362028,88039.0,88017.0,0.00066734]
[1769524636995,0.68362028,88037.0,88017.0,0.00066734]
[1769524637217,0.07179313,88036.0,88017.0,0.00066734]
[1769524637418,0.68362028,88035.0,88017.0,0.00066734]
[1769524637821,0.03781018,88045.0,88017.0,0.00066734]
[1769524638036,0.05428237,88035.0,88017.0,0.00066734]
[1769524638201,0.70657298,88037.0,88017.0,0.00066734]
[1769524638822,0.83146976,88049.0,88017.0,0.00066734]
[1769524639026,0.11668,88040.0,88017.0,0.00066734]
[1769524639414,0.68362028,88037.0,88017.0,0.00066734]
[1769524639633,0.04554651,88036.0,88017.0,0.00066734]
[1769524639840,0.68362028,88035.0,88017.0,0.00066734]
[1769524640237,0.0229527,88034.0,88017.0,0.00066734]
[1769524640442,0.11353947,88024.0,88013.0,0.0002]
[1769524640626,0.11353947,88024.0,87998.0,0.0001]
[1769524640627,0.68362028,88012.0,87998.0,0.0001]
[1769524640856,0.0004574,88008.0,87998.0,0.0001]
[1769524641258,0.00046668,88024.0,87999.0,0.01136376]
[1769524641455,0.00046668,88024.0,88002.0,0.0234813]
[1769524641659,0.00046668,88024.0,88005.0,0.01136299]
[1769524641844,0.00046668,88024.0,88007.0,0.01136273]
[1769524642039,0.11353947,88034.0,88008.0,0.69201631]
[1769524642308,0.11353947,88034.0,88008.0,0.69248299]
[1769524642640,0.11353947,88034.0,88008.0,0.02394798]
[1769524643037,0.33920377,88030.0,88008.0,0.00046668]
[1769524643240,0.02442923,88023.0,88008.0,0.00046668]
[1769524643542,0.11353947,88024.0,88008.0,0.00046668]
[1769524643739,0.01135898,88036.0,88008.0,0.00046668]
[1769524643740,0.63165369,88033.0,88008.0,0.00046668]
[1769524643942,0.74519316,88044.0,88012.0,0.01136208]
[1769524644158,0.01135705,88051.0,88008.0,0.00046668]
[1769524644159,0.20847677,88058.0,88021.0,0.22721592]
[1769524644359,0.20847677,88058.0,88008.0,0.00046668]
[1769524644360,0.01135757,88047.0,88011.0,0.02451518]
[1769524644629,0.11353947,88041.0,88011.0,0.03587739]
[1769524644887,0.80246292,88041.0,88011.0,0.03587739]
[1769524645055,0.80246292,88041.0,88012.0,0.68360787]
[1769524645056,0.11353947,88041.0,88012.0,0.68360787]
[1769524645463,0.68892345,88040.0,88011.0,0.02451518]
[1769524645668,0.70369588,88040.0,88011.0,0.02451518]
[1769524645878,0.70369588,88040.0,88015.0,0.01136169]
[1769524646020,0.11353947,88041.0,88008.0,0.00046668]
[1769524646223,0.11353947,88041.0,88013.0,0.02451518]
[1769524646647,0.68892345,88040.0,88008.0,0.00046668]
[1769524646873,0.71175032,88040.0,88008.0,0.00046668]
[1769524647102,0.68892345,88034.0,88008.0,0.00046668]
[1769524648085,0.68892345,88045.0,88011.0,0.01136221]
[1769524648260,0.68892345,88045.0,88014.0,0.01136182]
[1769524648460,0.68892345,88045.0,88013.0,0.719485]
[1769524648685,0.68892345,88045.0,88013.0,0.70812305]
[1769524648828,0.68892345,88045.0,88021.0,0.01136092]
[1769524649032,0.47183116,88137.0,88041.0,0.00020066]
[1769524649033,0.005,88058.0,88041.0,0.00020066]
[1769524649386,0.69392345,88058.0,88041.0,0.00020066]
[1769524649586,0.05428237,88056.0,88041.0,0.00020066]
[1769524649805,0.05428237,88042.0,88007.0,0.01136273]
[1769524649996,0.33920377,88030.0,88003.0,0.02451518]
[1769524650135,0.33920377,88030.0,88003.0,0.02498186]
[1769524650136,0.68892345,88030.0,88003.0,0.02498186]
[1769524650690,0.68892345,88030.0,88005.0,0.01136299]
[1769524650911,0.11353947,88032.0,88010.0,0.01136234]
[1769524651415,0.11353947,88032.0,88009.0,0.01136247]
[1769524651758,0.11353947,88032.0,88008.0,0.0113626]
[1769524651964,0.11353947,88032.0,88009.0,0.01136247]
[1769524652171,0.11353947,88032.0,88008.0,0.0113626]
[1769524652807,0.11353947,88032.0,88007.0,0.01136273]
[1769524653011,0.11353947,88032.0,88010.0,0.06817396]
[1769524653230,0.11353947,88032.0,88008.0,0.03587778]
[1769524653752,0.11353947,88032.0,88008.0,0.02451518]
[1769524654087,0.11353947,88032.0,88008.0,0.03587778]
[1769524654287,0.11353947,88032.0,88009.0,0.69497034]
[1769524654512,0.11353947,88032.0,88010.0,0.02451518]
[1769524654714,0.36203064,88030.0,88003.0,0.00046668]
[1769524655005,0.71175032,88029.0,88003.0,0.00046668]
[1769524655410,0.68892345,88026.0,88003.0,0.00046668]
[1769524656439,0.02282687,88023.0,88003.0,0.00046668]
[1769524656636,0.06564252,88027.0,88003.0,0.00046668]
[1769524656637,0.68892345,88020.0,88003.0,0.00046668]
[1769524657246,0.68892345,88028.0,88003.0,0.00046668]
[1769524658016,0.05428237,88027.0,88003.0,0.00046668]
[1769524658294,0.71175032,88029.0,88003.0,0.00046668]
[1769524659614,0.02282687,88023.0,88003.0,0.00046668]
[1769524659888,0.68892345,88019.0,88003.0,0.00046668]
[1769524661203,0.02282687,88020.0,87998.0,0.0001]
[1769524661204,0.02282687,88016.0,87998.0,0.0001]
[1769524661411,0.02282687,88015.0,87998.0,0.0001]
[1769524661560,0.71175032,88014.0,87998.0,0.0001]
[1769524662569,0.00046668,88016.0,87998.0,0.68370787]
[1769524662776,0.11348739,88015.0,87998.0,0.0001]
[1769524662993,0.68892345,88014.0,87998.0,0.0001]
[1769524663172,0.0043,88000.0,87996.0,0.03772983]
[1769524663375,0.0043,88000.0,87985.0,0.02451518]
[1769524663636,0.68892345,87999.0,87981.0,0.0004574]
[1769524664176,0.68892345,87995.0,87981.0,0.0004574]
[1769524664590,0.0004574,87981.0,87961.0,0.001]
[1769524665011,0.68938085,87981.0,87961.0,0.001]
[1769524665216,0.07122077,87980.0,87961.0,0.001]
[1769524665422,0.001,87961.0,87944.0,0.02451518]
[1769524665626,0.68992345,87961.0,87934.0,0.02451518]
[1769524665827,0.13636634,87971.0,87940.0,0.01324084]
[1769524666029,0.11353947,87971.0,87945.0,0.01137074]
[1769524666228,0.11672,87979.0,87952.0,0.6949777]
[1769524666427,0.02282687,87980.0,87964.0,0.01136828]
[1769524666649,0.02282687,87980.0,87940.0,0.35244461]
[1769524666650,0.0899373,88000.0,87981.0,0.01136609]
[1769524666847,0.02282687,88005.0,87976.0,0.02451518]
[1769524667077,0.71175032,87996.0,87960.0,0.02451518]
[1769524667221,0.68892345,87994.0,87961.0,0.01136867]
[1769524667427,0.68892345,87994.0,87960.0,0.02451518]
[1769524667428,0.68892345,87992.0,87970.0,0.01136751]
[1769524667626,0.11672,87994.0,87970.0,0.01136751]
[1769524667847,0.11374406,88000.0,87971.0,0.02451518]
[1769524668047,0.23046406,88000.0,87973.0,0.02451518]
[1769524668280,0.23046406,88000.0,87970.0,0.00014015]
[1769524668281,0.68892345,87997.0,87970.0,0.00014015]
[1769524668488,0.02282687,87994.0,87970.0,0.00014015]
[1769524668695,0.68892345,87993.0,87970.0,0.00014015]
[1769524668865,0.56966783,88000.0,87975.0,0.01136686]
[1769524668866,0.23046406,88000.0,87975.0,0.01136686]
[1769524669066,0.23046406,88000.0,87971.0,0.02451518]
[1769524669067,0.11374406,88000.0,87974.0,0.02451518]
[1769524669451,0.11374406,88000.0,87970.0,0.01150766]
[1769524669452,0.02282687,87997.0,87970.0,0.00014015]
[1769524669637,0.71175032,87996.0,87970.0,0.00014015]
[1769524670276,0.02282687,87993.0,87970.0,0.00014015]
[1769524670473,0.68892345,87992.0,87970.0,0.00014015]
[1769524670687,0.71175032,87992.0,87970.0,0.00014015]
[1769524670915,0.71175032,87990.0,87970.0,0.00014015]
[1769524671219,0.01136634,87979.0,87940.0,0.01310069]
[1769524671420,0.68892345,87969.0,87941.0,0.02451518]
[1769524671619,0.02282687,87968.0,87940.0,0.01318571]
[1769524671762,0.05428237,87962.0,87940.0,0.01318571]
[1769524671960,0.02282687,87963.0,87940.0,0.01318571]
[1769524672197,0.68892345,87971.0,87944.0,0.01137087]
[1769524672408,0.17359774,87970.0,87940.0,0.01318571]
[1769524672623,0.68892345,87965.0,87940.0,0.01318571]
[1769524672760,0.76603269,87963.0,87940.0,0.01318571]
[1769524673161,0.82287509,87963.0,87940.0,0.01318571]
[1769524673400,0.76603269,87963.0,87940.0,0.01318571]
[1769524673653,0.68892345,87959.0,87940.0,0.01318571]
[1769524674063,0.68892345,87957.0,87940.0,0.01318571]
[1769524674265,0.06821955,87952.0,87930.0,0.0029911]
[1769524674380,0.01,87940.0,87930.0,0.00304415]
[1769524674585,0.69407427,87943.0,87930.0,0.00304415]
[1769524675290,0.0899373,87977.0,87930.0,0.00304415]
[1769524675487,0.05428237,87967.0,87940.0,0.01137138]
[1769524675694,0.69407427,87966.0,87935.0,0.01137203]
[1769524675903,0.69407427,87966.0,87937.0,0.01137177]
[1769524676109,0.69407427,87966.0,87938.0,0.05685824]
[1769524676330,0.11375432,87970.0,87949.0,0.01137022]
[1769524676541,0.11375432,87970.0,87947.0,0.02405268]
[1769524676943,0.11375432,87970.0,87947.0,0.09227519]
[1769524677148,0.11375432,87970.0,87947.0,0.02405268]
[1769524680206,0.69407427,87968.0,87930.0,0.00304415]
[1769524680448,0.02314903,87964.0,87933.0,0.01137229]
[1769524680647,0.69407427,87956.0,87930.0,0.00304415]
[1769524680926,0.01137126,87941.0,87919.0,0.0002]
[1769524681140,0.00695585,87923.0,87903.0,0.00042397]
[1769524681365,0.02314903,87922.0,87909.0,0.01137539]
[1769524681569,0.34290453,87930.0,87923.0,0.01137358]
[1769524681570,0.00304415,87930.0,87923.0,0.01137358]
[1769524681741,0.11375432,87947.0,87910.0,0.33986038]
[1769524681742,0.11375432,87947.0,87921.0,0.06824307]
[1769524681942,0.11375432,87947.0,87918.0,0.01137423]
[1769524682214,0.02314903,87945.0,87913.0,0.02068247]
[1769524682436,0.02314903,87940.0,87907.0,0.01137565]
[1769524682659,0.02314903,87940.0,87905.0,0.12813591]
[1769524682660,0.11375432,87947.0,87911.0,0.68324489]
[1769524682863,0.11375432,87947.0,87918.0,0.01137423]
[1769524683013,0.02314903,87952.0,87925.0,0.01137332]
[1769524683393,0.02314903,87952.0,87921.0,0.01137384]
[1769524683641,0.02314903,87951.0,87923.0,0.01137358]
[1769524683843,0.02314903,87951.0,87920.0,0.01137397]
[1769524684047,0.0113697,87953.0,87912.0,0.01137501]
[1769524684230,0.02314903,87951.0,87915.0,0.01137462]
[1769524684431,0.69407427,87947.0,87913.0,0.06824915]
[1769524684626,0.02314903,87945.0,87912.0,0.01137501]
[1769524684850,0.69407427,87943.0,87910.0,0.1168]
[1769524685053,0.02314903,87942.0,87910.0,0.12817527]
[1769524685270,0.69407427,87938.0,87906.0,0.02728]
[1769524685575,0.0113719,87936.0,87903.0,0.00089186]
[1769524685776,0.69407427,87933.0,87903.0,0.00089186]
[1769524685985,0.02314903,87930.0,87903.0,0.00089186]
[1769524686187,0.69407427,87928.0,87903.0,0.00089186]
[1769524686332,0.02314903,87927.0,87903.0,0.00089186]
[1769524686523,0.02314903,87927.0,87900.0,0.01137656]
[1769524686725,0.02361536,87927.0,87896.0,0.01137708]
[1769524686922,0.02361536,87927.0,87895.0,0.000461]
[1769524686923,0.69407427,87909.0,87895.0,0.000461]
[1769524687207,0.10393189,87908.0,87895.0,0.000461]
[1769524687444,0.02314903,87908.0,87895.0,0.000461]
[1769524687656,0.69407427,87897.0,87857.0,0.03870213]
[1769524687816,0.02314903,87896.0,87866.0,0.01138096]
[1769524688014,0.02314903,87896.0,87871.0,0.01138031]
[1769524688236,0.11375432,87900.0,87867.0,0.68324489]
[1769524688237,0.11375432,87900.0,87875.0,0.0113798]
[1769524688439,0.11375432,87914.0,87900.0,0.01]
[1769524688681,0.1168,87927.0,87901.0,0.01137643]
[1769524688896,0.00046604,87914.0,87900.0,0.01]
[1769524689319,0.00046604,87914.0,87902.0,0.0113763]
[1769524689524,0.02314903,87932.0,87901.0,0.01137643]
[1769524689775,0.02314903,87932.0,87901.0,0.00046604]
[1769524689994,0.02738891,87931.0,87901.0,0.00046604]
[1769524690202,0.02314903,87928.0,87901.0,0.00046604]
[1769524690404,0.69407427,87926.0,87901.0,0.00046604]
[1769524690607,0.02314903,87925.0,87901.0,0.00046604]
[1769524691437,0.02314903,87923.0,87901.0,0.00046604]
[1769524691637,0.02314903,87921.0,87901.0,0.00046604]
[1769524691841,0.02314903,87920.0,87901.0,0.00046604]
[1769524692929,0.02314903,87920.0,87901.0,0.01184247]
[1769524693128,0.69407427,87929.0,87901.0,0.00046604]
[1769524693129,0.7172233,87929.0,87901.0,0.00046604]
[1769524693335,0.69407427,87925.0,87901.0,0.00046604]
[1769524693532,0.02314903,87922.0,87901.0,0.00046604]
[1769524693736,0.02314903,87922.0,87904.0,0.05688018]
[1769524694099,0.7172233,87933.0,87910.0,0.05687596]
[1769524694308,0.13998903,87944.0,87922.0,0.01]
[1769524694512,0.69407427,87943.0,87922.0,0.01]
[1769524694708,0.79479683,87943.0,87922.0,0.01]
[1769524694926,0.7172233,87943.0,87922.0,0.01]
[1769524695130,0.02314903,87942.0,87922.0,0.01]
[1769524695337,0.02314903,87939.0,87922.0,0.01]
[1769524695530,0.01137138,87940.0,87901.0,0.01184247]
[1769524695531,0.06823277,87935.0,87901.0,0.00046604]
[1769524695710,0.02314903,87929.0,87901.0,0.00046604]
[1769524695936,0.69407427,87926.0,87901.0,0.00046604]
[1769524696153,0.02314903,87951.0,87920.0,0.01137397]
[1769524696360,0.02314903,87951.0,87924.0,0.01137345]
[1769524696523,0.05428237,87962.0,87936.0,0.0113719]
[1769524696675,0.11588528,87962.0,87922.0,0.02068342]
[1769524696882,0.69407427,87959.0,87922.0,0.70392831]
[1769524697090,0.011371,87943.0,87882.0,0.02732]
[1769524697307,0.05428237,87948.0,87894.0,0.01137734]
[1769524697308,0.02314903,87930.0,87894.0,0.01137734]
[1769524697657,0.52468589,87929.0,87900.0,0.01137656]
[1769524697882,0.52468589,87929.0,87898.0,0.05688371]
[1769524698086,0.01137177,87937.0,87896.0,0.01137708]
[1769524698087,0.69407427,87927.0,87896.0,0.01137708]
[1769524698228,0.02314903,87926.0,87901.0,0.01137643]
[1769524698429,0.69407427,87936.0,87905.0,0.01137591]
[1769524698687,0.7172233,87936.0,87905.0,0.01137591]
[1769524698885,0.69407427,87934.0,87902.0,0.0113763]
[1769524699088,0.69407427,87929.0,87896.0,0.01137708]
[1769524699289,0.01137423,87918.0,87894.0,0.00046604]
[1769524699496,0.02314903,87917.0,87894.0,0.00046604]
[1769524699701,0.02314903,87916.0,87881.0,0.01137902]
[1769524699914,0.02314903,87916.0,87878.0,0.68324489]
[1769524699915,0.22750022,87913.0,87875.0,0.02068342]
[1769524700123,0.00046633,87916.0,87867.0,0.02732]
[1769524700124,0.02314903,87898.0,87867.0,0.02732]
[1769524700325,0.02314903,87898.0,87872.0,0.01138018]
[1769524700533,0.69407427,87910.0,87876.0,0.01137967]
[1769524700709,0.113767,87899.0,87870.0,0.39676226]
[1769524700908,0.113767,87899.0,87875.0,0.0113798]
[1769524701110,0.113767,87899.0,87868.0,0.0118417]
[1769524701332,0.113767,87899.0,87868.0,0.06874484]
[1769524701538,0.69407427,87897.0,87868.0,0.000461]
[1769524701749,0.02314903,87896.0,87868.0,0.0118417]
[1769524701950,0.02314903,87896.0,87871.0,0.01138031]
[1769524702100,0.02314903,87896.0,87868.0,0.06874479]
[1769524702101,0.02314903,87896.0,87868.0,0.000461]
[1769524702346,0.64694211,87895.0,87868.0,0.0118417]
[1769524702730,0.64694211,87895.0,87820.0,0.0384]
[1769524702933,0.113767,87868.0,87844.0,0.03574513]
[1769524703270,0.11346701,87868.0,87846.0,0.01138355]
[1769524703470,0.11346701,87868.0,87843.0,0.01138394]
[1769524703760,0.11346701,87868.0,87850.0,0.43986038]
[1769524703992,0.64694211,87905.0,87869.0,0.01138057]
[1769524704163,0.12821527,87910.0,87861.0,0.63044536]
[1769524704164,0.02290513,87904.0,87876.0,0.01137967]
[1769524704365,0.11381108,87896.0,87875.0,0.0113798]
[1769524704679,0.11381108,87896.0,87869.0,5.311e-05]
[1769524704823,0.68990973,87894.0,87869.0,5.311e-05]
[1769524705005,0.02461772,87893.0,87869.0,5.311e-05]
[1769524705209,0.68990973,87894.0,87869.0,5.311e-05]
[1769524705872,0.68990973,87894.0,87869.0,0.01143368]
[1769524706109,0.11381108,87896.0,87869.0,5.311e-05]
[1769524706493,0.70128694,87895.0,87869.0,5.311e-05]
[1769524706666,0.02461772,87894.0,87869.0,5.311e-05]
[1769524706867,0.76845629,87893.0,87869.0,5.311e-05]
[1769524707575,0.76845629,87893.0,87846.0,0.22767045]
[1769524707576,0.68990973,87881.0,87848.0,0.0002]
[1769524707778,0.11381108,87871.0,87848.0,0.01204904]
[1769524707976,0.11381108,87871.0,87849.0,0.01138316]
[1769524708175,0.11381108,87881.0,87859.0,0.01138187]
[1769524708398,0.11381108,87881.0,87871.0,5.311e-05]
[1769524708623,0.11381108,87881.0,87864.0,0.01138122]
[1769524708801,0.11381108,87881.0,87862.0,0.01138148]
[1769524709012,0.68990973,87880.0,87850.0,0.01138303]
[1769524709229,0.11381108,87881.0,87850.0,0.01138303]
[1769524709230,0.11381108,87881.0,87860.0,0.01138174]
[1769524709424,0.11381108,87881.0,87880.0,5.311e-05]
[1769524709760,0.02732,87905.0,87872.0,0.01138018]
[1769524709960,0.02461772,87907.0,87875.0,0.0113798]
[1769524710162,0.11688,87904.0,87871.0,0.01138031]
[1769524710444,0.02461772,87896.0,87864.0,0.01138122]
[1769524710648,0.68990973,87887.0,87864.0,0.00046575]
[1769524710847,0.68990973,87886.0,87864.0,0.00046575]
[1769524711080,0.02461772,87887.0,87864.0,0.00046575]
[1769524711280,0.11688,87885.0,87864.0,0.00046575]
[1769524711483,0.02461772,87887.0,87864.0,0.05737122]
[1769524711689,0.05428237,87896.0,87864.0,0.00046575]
[1769524711900,0.11688,87888.0,87866.0,0.01138096]
[1769524712282,0.11688,87888.0,87868.0,0.0113807]
[1769524712854,0.11688,87888.0,87865.0,0.01138109]
[1769524713053,0.11688,87888.0,87866.0,0.01138096]
[1769524713218,0.11688,87888.0,87867.0,0.01138083]
[1769524713423,0.11688,87888.0,87866.0,0.01138096]
[1769524713651,0.11688,87890.0,87865.0,0.01138109]
[1769524713852,0.11688,87890.0,87864.0,0.00046575]
[1769524714058,0.83140745,87890.0,87864.0,0.00046575]
[1769524714346,0.83140745,87890.0,87864.0,0.01184697]
[1769524714550,0.83140745,87890.0,87864.0,0.00046575]
[1769524715268,0.11688,87889.0,87866.0,0.01138096]
[1769524715396,0.005,87888.0,87866.0,0.01138096]
[1769524715600,0.005,87888.0,87864.0,0.01184697]
[1769524715802,0.005,87888.0,87866.0,0.01138096]
[1769524716156,0.005,87888.0,87864.0,0.01184697]
[1769524716481,0.68990973,87887.0,87864.0,0.00046575]
[1769524716615,0.02461772,87884.0,87864.0,0.00046575]
[1769524716819,0.005,87888.0,87864.0,0.00046575]
[1769524716820,0.11688,87883.0,87864.0,0.00046575]
[1769524717017,0.11688,87883.0,87865.0,0.01138109]
[1769524717242,0.005,87888.0,87868.0,0.05690311]
[1769524717469,0.005,87888.0,87866.0,0.01138096]
[1769524717960,0.005,87888.0,87868.0,0.0113807]
[1769524718391,0.005,87888.0,87867.0,0.01138083]
[1769524718598,0.05689333,87884.0,87868.0,0.0113807]
[1769524718874,0.005,87888.0,87871.0,0.01138031]
[1769524719285,0.005,87888.0,87870.0,0.01138044]
[1769524719482,0.005,87888.0,87869.0,0.01138057]
[1769524720006,0.005,87888.0,87870.0,0.01138044]
[1769524720492,0.005,87888.0,87872.0,0.01138018]
[1769524720668,0.005,87888.0,87869.0,0.01138057]
[1769524720875,0.005,87888.0,87866.0,0.01138096]
[1769524721072,0.005,87888.0,87867.0,0.01138083]
[1769524721236,0.005,87888.0,87864.0,0.00046575]
[1769524721442,0.69490973,87888.0,87864.0,0.00046575]
[1769524721876,0.71452745,87886.0,87864.0,0.00046575]
[1769524722613,0.005,87888.0,87864.0,0.00046575]
[1769524722614,0.02461772,87885.0,87864.0,0.00046575]
[1769524722785,0.68990973,87884.0,87864.0,0.00046575]
[1769524722993,0.005,87888.0,87871.0,0.01138031]
[1769524723190,0.005,87888.0,87872.0,0.01138018]
[1769524723389,0.005,87888.0,87869.0,0.01138057]
[1769524723587,0.005,87888.0,87870.0,0.01138044]
[1769524723791,0.005,87888.0,87872.0,0.01138018]
[1769524723988,0.005,87888.0,87871.0,0.01138031]
[1769524724822,0.005,87888.0,87869.0,0.7162948]
[1769524725005,0.005,87888.0,87869.0,0.72767537]
[1769524725173,0.005,87888.0,87869.0,0.7162948]
[1769524725383,0.005,87888.0,87870.0,0.01138044]
[1769524725610,0.005,87888.0,87869.0,0.72767537]
[1769524725964,0.005,87888.0,87871.0,0.01138031]
[1769524727049,0.005,87888.0,87870.0,0.01138044]
[1769524727253,0.005,87888.0,87869.0,0.72767537]
[1769524727468,0.005,87888.0,87864.0,0.00046575]
[1769524727469,0.02461772,87868.0,87864.0,0.00046575]
[1769524727636,0.02461772,87866.0,87839.0,0.01138446]
[1769524727841,0.02461772,87865.0,87838.0,0.01138459]
[1769524728002,0.02461772,87865.0,87837.0,0.91975343]
[1769524728003,0.02461772,87865.0,87842.0,0.01138407]
[1769524728207,0.00046578,87866.0,87847.0,0.05691677]
[1769524728430,0.05688937,87869.0,87851.0,0.05691393]
[1769524728828,0.05691256,87875.0,87859.0,0.01138187]
[1769524729207,0.05691256,87875.0,87857.0,0.01138213]
[1769524729412,0.05691256,87875.0,87858.0,0.011382]
[1769524729594,0.05691256,87875.0,87853.0,0.69205973]
[1769524729797,0.02461772,87871.0,87843.0,0.01138394]
[1769524729999,0.02461772,87869.0,87843.0,0.01138394]
[1769524730425,0.68990973,87867.0,87838.0,0.01138459]
[1769524730592,0.02461772,87866.0,87842.0,0.01138407]
[1769524730790,0.02461772,87866.0,87846.0,0.01138355]
[1769524730988,0.02461772,87866.0,87847.0,0.01138342]
[1769524731304,0.05691256,87875.0,87848.0,0.22786538]
[1769524731526,0.11337137,87874.0,87854.0,0.01138252]
[1769524731729,0.11337137,87873.0,87851.0,0.00046578]
[1769524731953,0.11337137,87873.0,87846.0,0.2276701]
[1769524731954,0.00994689,87850.0,87829.0,0.01138576]
[1769524732134,0.00994689,87850.0,87826.0,0.01138614]
[1769524732135,0.68990973,87848.0,87826.0,0.01138614]
[1769524732348,0.02461772,87848.0,87829.0,0.01138576]
[1769524732590,0.02461772,87848.0,87828.0,0.01138589]
[1769524732710,0.02461772,87848.0,87835.0,0.01138498]
[1769524732910,0.02461772,87848.0,87834.0,0.01138511]
[1769524733111,0.02461772,87848.0,87827.0,0.01138602]
[1769524733384,0.02461772,87848.0,87833.0,0.01138524]
[1769524733509,0.02461772,87848.0,87832.0,0.01138537]
[1769524733710,0.02461772,87848.0,87828.0,0.01138589]
[1769524734111,0.02461772,87848.0,87821.0,0.01138679]
[1769524734310,0.02461772,87848.0,87814.0,0.24008774]
[1769524734521,0.0245263,87846.0,87818.0,0.12830718]
[1769524734719,0.0245263,87846.0,87819.0,0.01138705]
[1769524734978,0.0245263,87846.0,87819.0,0.05693488]
[1769524735154,0.0245263,87846.0,87820.0,0.01138692]
[1769524735362,0.05691256,87838.0,87813.0,0.01138783]
[1769524735706,0.0245263,87829.0,87804.0,0.000546]
[1769524735846,0.0245263,87829.0,87800.0,0.0175842]
[1769524735847,0.03447319,87813.0,87800.0,0.0175842]
[1769524736045,0.03431161,87813.0,87800.0,0.0175842]
[1769524736247,0.0245263,87813.0,87800.0,0.02897372]
[1769524736445,0.0245263,87813.0,87800.0,0.0175842]
[1769524737062,0.02499151,87813.0,87802.0,0.01138926]
[1769524737260,0.02499151,87813.0,87794.0,0.0113903]
[1769524737461,0.00046521,87813.0,87803.0,0.01138913]
[1769524737724,0.05691256,87820.0,87810.0,0.01138822]
[1769524737923,0.0245263,87834.0,87820.0,0.00021469]
[1769524738127,0.0245263,87834.0,87821.0,0.01138679]
[1769524738327,0.05695894,87837.0,87826.0,0.01138614]
[1769524738560,0.02732,87861.0,87824.0,0.0113864]
[1769524738561,0.05695894,87850.0,87824.0,0.0113864]
[1769524738690,0.67121266,87849.0,87814.0,0.0113877]
[1769524739074,0.05695894,87850.0,87817.0,0.11692]
[1769524739075,0.05695894,87838.0,87817.0,0.11692]
[1769524739394,0.69407486,87837.0,87811.0,0.01138809]
[1769524739604,0.0228622,87836.0,87810.0,0.00014028]
[1769524739829,0.0228622,87836.0,87814.0,0.0113877]
[1769524740194,0.0228622,87836.0,87810.0,0.00014028]
[1769524740440,0.05695894,87838.0,87812.0,0.02402147]
[1769524740653,0.05695894,87838.0,87810.0,0.00014028]
[1769524740654,0.05695894,87838.0,87811.0,0.11692]
[1769524740859,0.05695894,87838.0,87811.0,0.12830809]
[1769524741071,0.05695894,87838.0,87824.0,0.0113864]
[1769524741234,0.05695894,87838.0,87822.0,0.01138666]
[1769524741445,0.05695894,87838.0,87813.0,0.06832666]
[1769524741643,0.05695894,87838.0,87810.0,0.00014028]
[1769524741844,0.67121266,87835.0,87810.0,0.00014028]
[1769524742024,0.0228622,87832.0,87810.0,0.00014028]
[1769524742231,0.67121266,87832.0,87810.0,0.00014028]
[1769524742435,0.67121266,87832.0,87801.0,0.01138939]
[1769524742436,0.67121266,87827.0,87793.0,0.01139042]
[1769524742640,0.0228622,87824.0,87800.0,0.02778521]
[1769524742844,0.0228622,87819.0,87800.0,0.02778521]
[1769524743039,0.0228622,87818.0,87800.0,0.02778521]
[1769524743451,0.05695894,87820.0,87800.0,0.02778521]
[1769524743656,0.05695894,87820.0,87801.0,0.01138939]
[1769524743890,0.0228622,87843.0,87820.0,0.01]
[1769524744057,0.0228622,87843.0,87800.0,0.46878021]
[1769524744058,0.05693882,87831.0,87800.0,0.46878021]
[1769524744259,0.67121266,87852.0,87817.0,0.01138731]
[1769524744517,0.67121266,87852.0,87826.0,0.01138614]
[1769524744722,0.05692181,87852.0,87816.0,0.68820913]
[1769524744872,0.05692181,87852.0,87818.0,0.01138718]
[1769524744873,0.67121266,87850.0,87818.0,0.01138718]